bitfinex-derivatives/quotes_ETHF0:USTF0_20250727
["timestamp","ask_amount","ask_price","bid_price","bid_amount"]
[1753611293312,0.52905,3779.0,3778.9,28.9478]
[1753611293911,0.52905,3779.0,3778.9,29.47686]
[1753611294106,0.52905,3779.0,3778.9,28.9478]
[1753611295007,1.34195,3779.0,3778.9,28.9478]
[1753611295503,1.85995,3779.0,3778.9,28.9478]
[1753611296013,3.30455,3779.0,3778.9,28.9478]
[1753611296414,4.75035,3779.0,3778.9,28.9478]
[1753611301024,4.75035,3779.0,3778.9,28.9428]
[1753611304721,4.75035,3779.0,3778.9,28.9398]
[1753611306317,0.52905,3779.0,3778.9,28.9398]
[1753611306820,0.52905,3779.1,3779.0,4.2547]
[1753611307024,0.52903,3779.2,3779.0,2.4598]
[1753611307212,0.52902,3779.3,3779.2,0.52901]
[1753611307417,0.52902,3779.3,3779.2,26.12871]
[1753611307825,0.52902,3779.3,3779.2,25.5997]
[1753611308425,0.52902,3779.3,3779.2,26.12872]
[1753611311431,0.52901,3779.5,3779.4,4.78367]
[1753611311622,0.52901,3779.5,3779.4,29.33247]
[1753611313023,0.52901,3779.5,3779.4,29.33249]
[1753611315628,0.52898,3779.6,3779.5,0.52897]
[1753611315825,0.52898,3779.6,3779.5,4.78367]
[1753611316628,0.8,3779.7,3779.6,2.25037]
[1753611316833,0.8,3779.7,3779.6,26.11967]
[1753611321435,3.03395,3779.7,3779.6,26.11967]
[1753611321631,5.47995,3779.7,3779.6,26.11967]
[1753611321939,4.71455,3779.7,3779.6,4.78367]
[1753611322130,3.12825,3779.7,3779.6,26.11367]
[1753611322327,1.32895,3779.7,3779.6,26.11367]
[1753611323034,1.32895,3779.7,3779.6,4.78367]
[1753611323239,1.32895,3779.7,3779.6,26.11367]
[1753611324434,0.9282,3780.2,3779.8,3.72054]
[1753611324638,1.4445,3780.2,3780.1,4.9292]
[1753611324841,1.2687,3780.2,3780.1,29.3194]
[1753611325034,0.52888,3780.2,3780.1,29.3194]
[1753611325939,1.81557,3780.3,3780.2,4.78358]
[1753611326139,1.06317,3780.3,3780.2,4.78358]
[1753611326440,0.54687,3780.3,3780.2,4.78358]
[1753611326644,0.9335,3781.0,3780.9,4.2547]
[1753611326840,1.46227,3781.0,3780.9,28.0511]
[1753611327043,1.46227,3781.0,3780.9,1.7949]
[1753611327643,1.54867,3781.0,3780.9,7.4744]
[1753611328333,3.4078,3781.9,3781.0,2.6438]
[1753611328334,1.32165,3781.8,3781.0,2.6438]
[1753611328542,0.52875,3781.2,3781.1,4.3981]
[1753611328743,1.04755,3781.2,3781.1,4.3981]
[1753611328946,1.88485,3781.2,3781.1,4.3981]
[1753611329151,1.97125,3781.2,3781.1,4.3981]
[1753611329354,2.38925,3781.2,3781.1,1.8798]
[1753611330247,2.38925,3781.2,3781.1,3.8876]
[1753611330453,2.38925,3781.2,3781.1,4.3981]
[1753611330753,1.97125,3781.2,3781.1,4.3981]
[1753611331249,1.3885,3781.2,3781.1,4.92686]
[1753611331457,1.97124,3781.2,3781.1,4.92686]
[1753611331654,1.97124,3781.2,3781.1,4.3981]
[1753611332551,2.38924,3781.2,3781.1,4.3981]
[1753611333347,1.97124,3781.2,3781.1,4.3981]
[1753611333955,1.3021,3781.2,3781.1,4.92686]
[1753611334252,0.52869,3781.6,3781.5,4.3981]
[1753611334456,1.91719,3781.6,3781.5,4.3981]
[1753611334753,1.97119,3781.6,3781.5,4.3981]
[1753611336750,0.52869,3781.6,3781.5,4.3981]
[1753611337357,1.97119,3781.6,3781.5,4.3981]
[1753611338354,0.20887,3782.0,3781.8,0.52866]
[1753611338556,0.018,3783.3,3783.2,4.3981]
[1753611338854,2.53205,3783.3,3783.2,28.9179]
[1753611339149,1.4214,3783.3,3783.2,6.9007]
[1753611339350,2.75225827,3783.3,3783.2,4.3981]
[1753611339557,2.0324,3783.3,3783.2,26.0551]
[1753611339759,0.2,3783.9,3783.5,0.7052]
[1753611339953,0.2,3783.9,3782.9,3.2078]
[1753611339954,0.52838,3783.8,3783.7,5.7567]
[1753611340262,0.2,3783.9,3783.7,4.9621]
[1753611340451,0.72837,3783.9,3783.8,3.8595]
[1753611340657,1.54847,3783.9,3783.8,4.3981]
[1753611340959,0.72837,3783.9,3783.8,4.3981]
[1753611341152,0.2,3783.9,3783.8,4.3981]
[1753611341356,0.72837,3783.9,3783.8,4.3981]
[1753611341859,2.47987,3783.9,3783.8,4.3981]
[1753611342060,2.76077,3783.9,3783.8,4.3981]
[1753611342760,2.47987,3783.9,3783.8,4.3981]
[1753611343455,0.72837,3783.9,3783.8,4.3981]
[1753611346161,0.2,3783.9,3783.8,4.3981]
[1753611346464,0.2,3783.9,3783.8,4.92648]
[1753611346666,0.52831,3784.3,3784.2,1.7543]
[1753611346854,0.52831,3784.3,3784.2,26.6581]
[1753611347257,0.52831,3784.3,3784.2,29.3019]
[1753611347459,0.52829,3784.5,3784.3,2.6438]
[1753611347664,0.418,3785.2,3784.4,1.7543]
[1753611347867,3.73821212,3785.1,3785.0,2.4184]
[1753611348263,0.7822,3785.6,3785.0,1.7543]
[1753611348567,3.44089,3785.2,3785.1,3.6341]
[1753611348763,3.02259,3785.2,3785.1,4.3981]
[1753611348958,2.54169,3785.2,3785.1,4.3981]
[1753611349161,0.783,3785.5,3785.3,2.6438]
[1753611349463,1.24337034,3785.4,3785.3,4.3981]
[1753611349658,1.24337034,3785.4,3785.3,29.3279]
[1753611349860,0.52816,3785.4,3785.3,29.3279]
[1753611350962,3.02396,3785.4,3785.3,29.3279]
[1753611351157,3.44226,3785.4,3785.3,0.7946]
[1753611351364,3.00431,3785.4,3784.9,0.764]
[1753611351563,3.4423,3785.1,3785.0,21.705]
[1753611351764,2.241,3785.1,3785.0,21.705]
[1753611352265,3.4423,3785.1,3785.0,22.4996]
[1753611352660,3.4423,3785.1,3785.0,21.705]
[1753611353060,3.4423,3785.1,3785.0,22.4996]
[1753611353268,3.4423,3785.1,3785.0,23.5848]
[1753611353666,3.4423,3785.1,3785.0,23.5858]
[1753611353868,3.024,3785.1,3785.0,26.1041]
[1753611354662,0.783,3785.4,3785.0,26.1041]
[1753611354863,0.52819,3785.2,3785.1,3.349]
[1753611355065,2.54131,3785.7,3785.6,4.3981]
[1753611355366,2.05991,3785.7,3785.6,26.0931]
[1753611355670,3.02391,3785.7,3785.6,26.0931]
[1753611356158,1.52024,3785.9,3785.1,6.8419]
[1753611356159,3.02398,3785.2,3785.1,6.8419]
[1753611356365,3.02398,3785.2,3785.1,25.3261]
[1753611356568,3.02398,3785.2,3785.1,26.0901]
[1753611356865,0.52818,3785.2,3785.1,29.2979]
[1753611357064,0.52817,3785.3,3785.1,27.18229]
[1753611357370,0.52817,3785.3,3785.2,4.3981]
[1753611357564,0.3016,3785.6,3785.2,2.28248]
[1753611357867,2.66203,3785.6,3785.5,4.2968]
[1753611358069,2.66203,3785.6,3785.5,25.9958]
[1753611358572,2.95513,3785.6,3785.5,25.9958]
[1753611358869,2.9630369,3785.6,3785.5,22.5127]
[1753611359070,3.3728369,3785.6,3785.5,21.699]
[1753611359972,3.3728369,3785.6,3785.5,22.5127]
[1753611361965,2.19141,3785.0,3784.9,5.7251]
[1753611362169,3.36501,3785.0,3784.9,24.1943]
[1753611362665,3.36501,3785.0,3784.9,22.9815]
[1753611362871,3.36501,3785.0,3784.9,21.677]
[1753611364068,4.07990484,3785.0,3784.9,21.677]
[1753611364760,3.36501,3785.0,3784.9,21.677]
[1753611364965,2.8368,3784.4,3783.9,1.8143]
[1753611365173,3.36514,3784.1,3784.0,21.2062]
[1753611365471,2.95538,3783.8,3783.7,6.7257]
[1753611365770,2.95538,3783.8,3783.7,29.1736]
[1753611366466,2.48538,3783.8,3783.7,29.1736]
[1753611366672,0.52838,3783.8,3783.7,29.1736]
[1753611367373,1.73639801,3783.8,3783.7,29.1736]
[1753611367568,2.02949801,3783.8,3783.7,29.1736]
[1753611367768,3.20309801,3783.8,3783.7,29.1736]
[1753611368168,3.67309801,3783.8,3783.7,29.1736]
[1753611370272,4.08289801,3783.8,3783.7,27.3941]
[1753611370474,4.08289801,3783.8,3783.7,28.3947]
[1753611370665,4.08289801,3783.8,3783.7,24.1863]
[1753611370868,4.08289801,3783.8,3783.7,23.5038]
[1753611371173,3.67309801,3783.8,3783.7,25.1869]
[1753611371371,3.67309801,3783.8,3783.7,25.9658]
[1753611375376,4.08289801,3783.8,3783.7,22.4827]
[1753611375568,4.08289801,3783.8,3783.7,25.1869]
[1753611375773,3.67309801,3783.8,3783.7,25.9658]
[1753611376979,4.08289801,3783.8,3783.7,25.1869]
[1753611377283,0.52848,3783.1,3783.0,7.5046]
[1753611377578,0.52848,3783.1,3783.0,29.1026]
[1753611378780,1.78088,3783.1,3783.0,29.1026]
[1753611379076,2.95548,3783.1,3783.0,29.1026]
[1753611379874,3.36528,3783.1,3783.0,22.4117]
[1753611380278,3.36528,3783.1,3783.0,25.1159]
[1753611380581,2.95548,3783.1,3783.0,25.8948]
[1753611381074,2.48548,3783.1,3783.0,25.8948]
[1753611381382,3.73621,3783.6,3783.5,2.5173]
[1753611381575,3.73621,3783.6,3783.5,25.8778]
[1753611381977,0.52841,3783.6,3783.5,25.8778]
[1753611382285,3.73614,3784.1,3784.0,4.2968]
[1753611382580,3.73614,3784.1,3784.0,25.8848]
[1753611383880,5.69314,3784.1,3784.0,25.8848]
[1753611384078,6.16314,3784.1,3784.0,25.8848]
[1753611384872,3.2078,3784.1,3784.0,25.8848]
[1753611385072,2.48524,3784.8,3784.7,4.2968]
[1753611385276,2.48524,3784.8,3784.7,25.8718]
[1753611386285,2.95524,3784.8,3784.7,25.8718]
[1753611387580,2.48524,3784.8,3784.7,25.8718]
[1753611388178,2.93224,3784.8,3784.7,25.8718]
[1753611391486,0.52834,3784.1,3784.0,4.9411]
[1753611391683,0.52834,3784.1,3784.0,26.4851]
[1753611392087,2.85204,3784.1,3784.0,25.8725]
[1753611392986,3.24464,3784.1,3784.0,24.0226]
[1753611393992,2.85204,3784.1,3784.0,25.0837]
[1753611394291,2.85204,3784.1,3784.0,25.8725]
[1753611394690,2.34689,3783.7,3783.6,6.791]
[1753611394989,2.85209,3783.7,3783.6,25.1442]
[1753611395288,0.52839,3783.7,3783.6,25.8895]
[1753611395785,2.85209,3783.7,3783.6,25.8905]
[1753611396187,2.85209,3783.7,3783.6,4.3285]
[1753611396387,2.40509,3783.7,3783.6,25.8835]
[1753611396594,2.85209,3783.7,3783.6,25.8835]
[1753611396787,2.85209,3783.7,3783.6,25.0947]
[1753611396986,0.52846,3783.2,3783.1,7.5363]
[1753611397185,0.52846,3783.2,3783.1,29.0853]
[1753611397686,1.30956,3783.2,3783.1,29.0853]
[1753611397888,2.40516,3783.2,3783.1,29.0853]
[1753611398088,2.85216,3783.2,3783.1,25.8775]
[1753611398993,3.24476,3783.2,3783.1,23.3298]
[1753611399291,3.24476,3783.2,3783.1,22.2943]
[1753611402183,3.24476,3783.2,3783.1,23.3554]
[1753611402387,3.24476,3783.2,3783.1,23.3298]
[1753611402690,2.85216,3783.2,3783.1,25.0887]
[1753611402889,2.85216,3783.2,3783.1,25.8775]
[1753611403093,3.24476,3783.2,3783.1,22.2943]
[1753611403781,3.24476,3783.2,3783.1,23.8915]
[1753611404890,3.24476,3783.2,3783.1,18.91299]
[1753611405087,0.52855,3782.6,3782.5,0.7888]
[1753611405389,1.68795,3782.6,3782.5,24.0411]
[1753611406091,3.44455,3782.6,3782.5,24.0411]
[1753611406286,4.19985,3782.6,3782.5,24.0411]
[1753611406991,4.19985,3782.6,3782.5,24.7864]
[1753611407191,4.19985,3782.6,3782.5,25.8475]
[1753611408896,4.19985,3782.6,3782.5,22.0184]
[1753611409292,4.19985,3782.6,3782.5,22.7637]
[1753611409496,0.52855,3782.6,3782.5,25.8475]
[1753611410992,0.52862,3782.1,3782.0,1.2339]
[1753611411193,4.52916,3782.7,3782.0,23.2743]
[1753611411397,0.52856,3782.5,3782.4,4.9411]
[1753611411697,0.52856,3782.5,3782.4,26.4911]
[1753611412195,0.52856,3782.5,3782.4,23.2833]
[1753611412497,4.74206,3782.5,3782.4,23.2833]
[1753611413094,4.74206,3782.5,3782.4,2.5221]
[1753611413393,4.74209,3782.3,3782.2,3.5832]
[1753611413593,4.74209,3782.3,3782.2,25.1252]
[1753611414890,4.74209,3782.3,3782.2,25.8705]
[1753611415202,3.98889,3782.3,3782.2,25.8705]
[1753611415900,4.74209,3782.3,3782.2,25.8705]
[1753611416600,3.98889,3782.3,3782.2,25.8705]
[1753611416994,1.28389,3782.3,3782.2,25.8705]
[1753611417197,0.52859,3782.3,3782.2,25.8705]
[1753611418498,3.7548,3782.8,3782.7,1.7653]
[1753611418699,5.06622,3782.8,3782.7,25.8667]
[1753611418903,7.47272,3782.8,3782.7,25.8667]
[1753611419405,5.09724,3781.9,3781.8,0.19567143]
[1753611419701,5.09724,3781.9,3781.8,0.74897143]
[1753611419896,0.52864,3781.9,3781.8,4.53937143]
[1753611420100,0.52864,3782.0,3781.9,4.3437]
[1753611420300,0.52864,3782.0,3781.9,26.0447]
[1753611421593,0.52862,3782.1,3781.9,26.0447]
[1753611421903,0.52862,3782.1,3782.0,4.3437]
[1753611422103,0.7829,3782.2,3782.1,4.3437]
[1753611422693,1.3299,3782.2,3782.1,4.3437]
[1753611423000,5.0972,3782.2,3782.1,3.5678]
[1753611423901,1.82083,3782.0,3781.9,22.2543]
[1753611424096,5.09723,3782.0,3781.9,22.2543]
[1753611424900,5.09723,3782.0,3781.9,21.701]
[1753611425101,5.09724,3781.9,3781.8,0.19567143]
[1753611425504,0.7829,3782.2,3782.1,4.3437]
[1753611425701,3.73634,3782.7,3782.6,1.7653]
[1753611426000,1.64153,3782.8,3782.6,23.4613]
[1753611426201,2.42443,3782.8,3782.7,4.3437]
[1753611426400,3.14810094,3782.8,3782.7,4.3437]
[1753611426603,0.72367094,3782.8,3782.7,4.87223]
[1753611426801,0.72367094,3782.8,3782.7,4.3437]
[1753611427202,0.72390117,3782.8,3782.7,4.3437]
[1753611427412,0.72390117,3782.8,3782.7,4.87223]
[1753611427701,1.3299,3783.3,3783.2,0.6877]
[1753611427901,1.3299,3783.3,3783.2,25.2628]
[1753611427902,4.98871756,3783.3,3783.2,25.2628]
[1753611428108,4.26485,3783.3,3783.2,25.2628]
[1753611428608,5.09705,3783.3,3783.2,25.2628]
[1753611429803,5.09705,3783.3,3783.2,23.4603]
[1753611430008,5.09705,3783.3,3783.2,22.2483]
[1753611430509,2.369,3782.9,3782.8,3.5678]
[1753611430704,5.0971,3782.9,3782.8,3.5678]
[1753611430906,5.0971,3782.9,3782.8,25.2468]
[1753611433307,0.52856,3782.5,3782.4,0.7897]
[1753611433511,5.09716,3782.5,3782.4,25.2328]
[1753611435115,5.09716,3782.5,3782.4,28.4406]
[1753611435612,5.09716,3782.5,3782.4,25.2328]
[1753611436206,5.09716,3782.5,3782.4,23.4303]
[1753611436417,5.09716,3782.5,3782.4,24.22]
[1753611438808,5.09716,3782.5,3782.4,25.2328]
[1753611439110,5.09716,3782.5,3782.4,23.4303]
[1753611439314,5.09716,3782.5,3782.4,22.2183]
[1753611439516,5.09716,3782.5,3782.4,21.665]
[1753611440014,5.09716,3782.5,3781.9,7.5515]
[1753611440015,0.7829,3782.3,3781.9,7.5515]
[1753611440314,0.52861,3782.2,3782.0,24.183]
[1753611440514,0.52861,3782.2,3782.1,4.3437]
[1753611440715,0.52859,3782.3,3782.1,1.7653]
[1753611440913,0.52859,3782.3,3782.2,25.9887]
[1753611441812,0.00462482,3782.5,3782.2,23.4103]
[1753611442011,0.00462482,3782.5,3782.4,4.3437]
[1753611442211,0.00462482,3782.5,3782.4,25.9867]
[1753611442408,0.53318482,3782.5,3782.4,25.9867]
[1753611442610,5.10178482,3782.5,3782.4,25.2108]
[1753611442815,5.10178482,3782.5,3782.4,1.0776]
[1753611443115,3.2013,3782.2,3782.1,2.555]
[1753611443315,1.3115,3782.2,3782.1,25.9867]
[1753611443516,0.5286,3782.2,3782.1,25.9867]
[1753611443713,0.78752482,3782.5,3782.2,1.7887]
[1753611443918,0.78752482,3782.5,3782.1,23.4083]
[1753611443919,1.31608482,3782.5,3782.4,4.3437]
[1753611444820,0.53318482,3782.5,3782.4,4.3437]
[1753611445425,0.00462482,3782.5,3782.4,4.87227]
[1753611445622,0.53318482,3782.5,3782.4,4.3437]
[1753611446125,0.00462482,3782.5,3782.4,4.87227]
[1753611446714,0.53318482,3782.5,3782.4,4.87227]
[1753611447124,0.00462482,3782.5,3782.4,4.87227]
[1753611447623,0.52852,3782.8,3782.7,5.01323]
[1753611447827,0.52852,3782.8,3782.7,26.64323]
[1753611448624,0.52852,3782.8,3782.7,26.1147]
[1753611448821,1.78812,3782.8,3782.7,26.1147]
[1753611449023,1.6393,3783.2,3782.8,1.6443]
[1753611449324,4.96496,3783.2,3783.1,4.4847]
[1753611449522,4.96496,3783.2,3783.1,26.1137]
[1753611449717,4.14686,3783.2,3783.1,26.1137]
[1753611449923,3.13066,3783.2,3783.1,26.1137]
[1753611450224,0.52846,3783.3,3783.1,23.3649]
[1753611450420,0.52845,3783.3,3783.2,4.4847]
[1753611450619,1.25319382,3783.3,3783.2,4.4847]
[1753611450821,2.07439382,3783.3,3783.2,4.4847]
[1753611451128,1.25319382,3783.3,3783.2,4.4847]
[1753611451321,1.25319382,3783.3,3783.2,5.01316]
[1753611451526,1.34965,3783.3,3783.2,4.4847]
[1753611451828,1.34965,3783.3,3783.2,2.5632]
[1753611451829,4.96495,3783.3,3783.2,2.5632]
[1753611452224,4.96495,3783.3,3783.2,0.5176]
[1753611452928,4.96495,3783.3,3783.2,1.8453]
[1753611453319,4.96495,3783.3,3782.9,1.1045]
[1753611453524,2.3095,3782.9,3782.8,1.3449]
[1753611453723,1.90037117,3785.1,3784.6,0.5004]
[1753611453927,0.2,3785.9,3783.2,3.2078]
[1753611453928,0.2,3785.9,3785.3,0.5546]
[1753611454123,0.2,3785.9,3785.8,3.7359]
[1753611454424,1.18485803,3786.5,3786.2,0.52804]
[1753611454729,0.23918035,3786.3,3786.2,26.24084]
[1753611454934,0.16865803,3786.5,3786.4,0.52802]
[1753611455330,0.16865803,3786.5,3786.4,23.03302]
[1753611455531,0.16865803,3786.5,3786.4,23.28059237]
[1753611456033,0.16865803,3786.5,3786.4,23.27059237]
[1753611456230,0.16865803,3786.5,3786.4,22.74257237]
[1753611456430,0.98985803,3786.5,3786.4,22.74257237]
[1753611456733,2.00605803,3786.5,3786.4,22.73957237]
[1753611456929,2.53405803,3786.5,3786.4,22.73957237]
[1753611457130,2.00605803,3786.5,3786.4,22.73957237]
[1753611457331,2.53405803,3786.5,3786.4,22.73957237]
[1753611458129,0.98675803,3786.5,3786.4,0.24757237]
[1753611458328,3.35215803,3786.5,3786.4,0.24757237]
[1753611458528,3.35215803,3786.5,3786.4,22.74557237]
[1753611458929,2.82415803,3786.5,3786.4,22.74557237]
[1753611459230,2.00605803,3786.5,3786.4,22.74557237]
[1753611459828,2.53405803,3786.5,3786.4,22.74557237]
[1753611460033,3.35215803,3786.5,3786.4,22.74557237]
[1753611460224,3.35215803,3786.5,3786.4,22.72957237]
[1753611460536,4.60515803,3786.5,3786.4,22.482]
[1753611460731,5.13315803,3786.5,3786.4,22.482]
[1753611461333,3.1919,3786.4,3786.2,3.2078]
[1753611461633,4.4365,3786.4,3786.3,22.72557637]
[1753611461834,4.4365,3786.4,3786.3,22.70557637]
[1753611462129,4.4365,3786.4,3786.3,0.24757884]
[1753611462332,4.4365,3786.4,3786.3,22.455]
[1753611463037,4.4365,3786.4,3786.2,3.2078]
[1753611463231,1.781,3786.4,3786.3,22.449]
[1753611463736,4.4365,3786.4,3786.3,22.449]
[1753611463941,4.4365,3786.3,3786.2,3.2078]
[1753611464229,1.8374,3786.3,3786.2,26.17484]
[1753611464433,0.8212,3786.3,3786.2,26.17484]
[1753611464637,3.6184,3786.3,3786.2,26.16784]
[1753611465037,1.8374,3786.3,3786.2,26.16784]
[1753611465735,4.4365,3786.3,3786.2,26.15884]
[1753611465936,4.96453,3786.3,3786.2,3.2078]
[1753611466235,4.96453,3786.3,3786.2,26.14684]
[1753611466436,4.96453,3786.3,3786.2,26.14184]
[1753611466630,4.96453,3786.3,3786.2,3.73584]
[1753611466838,4.96453,3786.3,3786.2,26.13584]
[1753611467541,4.96453,3786.3,3786.2,25.6068]
[1753611467729,4.96453,3786.3,3786.2,25.5968]
[1753611468338,4.96453,3786.3,3786.2,25.5908]
[1753611468643,4.96453,3786.3,3786.2,3.2078]
[1753611468835,4.96453,3786.3,3786.2,25.5908]
[1753611469337,4.96453,3786.3,3786.2,25.5818]
[1753611470830,4.4365,3786.3,3786.2,26.10984]
[1753611471334,4.96453,3786.3,3786.2,25.5818]
[1753611471538,4.4365,3786.3,3786.2,25.5818]
[1753611471741,4.96453,3786.3,3786.2,25.5818]
[1753611472042,4.4365,3786.3,3786.2,26.10984]
[1753611474039,4.4365,3786.3,3786.2,26.35743707]
[1753611475231,4.4365,3786.3,3786.2,25.82939707]
[1753611475939,1.8374,3786.3,3786.2,25.82939707]
[1753611476238,4.14643,3786.3,3786.2,25.82939707]
[1753611476439,4.4365,3786.3,3786.2,26.35743707]
[1753611476742,0.8212,3786.3,3786.2,26.35743707]
[1753611477533,0.8212,3786.3,3786.2,27.83523707]
[1753611477940,1.34923,3786.3,3786.2,27.83523707]
[1753611478138,0.8212,3786.3,3786.2,27.83523707]
[1753611478836,3.05563,3786.3,3786.2,27.30719707]
[1753611479137,3.05563,3786.3,3786.2,27.83523707]
[1753611479343,2.5276,3786.3,3786.2,27.83523707]
[1753611479539,4.38823,3786.3,3786.2,27.83523707]
[1753611479743,4.7401,3786.3,3786.2,27.83523707]
[1753611479946,5.26813,3786.3,3786.2,27.30719707]
[1753611480242,5.26813,3786.3,3786.2,25.74239707]
[1753611481242,5.26813,3786.3,3786.2,25.4948]
[1753611481440,5.26813,3786.3,3786.2,24.81601485]
[1753611482446,5.92899941,3786.3,3786.2,24.81601485]
[1753611482939,5.92899941,3786.3,3785.4,38.07]
[1753611482940,2.43214,3785.5,3785.4,38.07]
[1753611483141,5.31424,3785.5,3785.4,63.5628]
[1753611483340,5.31424,3785.5,3785.4,41.2778]
[1753611483542,5.31424,3785.5,3785.4,63.5428]
[1753611483743,5.31424,3785.5,3785.4,3.2078]
[1753611484142,2.43216,3785.4,3785.3,22.263]
[1753611484446,5.31433,3784.9,3784.8,3.2078]
[1753611484640,5.31433,3784.9,3784.8,25.4728]
[1753611485540,5.31433,3784.9,3784.8,3.2078]
[1753611485736,5.31433,3784.9,3784.8,5.3358]
[1753611487248,3.85673,3784.9,3784.8,6.8869]
[1753611487453,1.32025,3785.9,3784.8,7.41513]
[1753611487642,2.43216,3785.4,3785.3,4.4331]
[1753611487841,1.32006,3786.4,3785.3,3.2078]
[1753611488041,4.4343,3785.8,3785.7,6.8869]
[1753611488249,3.8566,3785.8,3785.7,29.1649]
[1753611488753,3.3285,3785.8,3785.7,29.1649]
[1753611489046,3.3285,3785.8,3785.7,29.69301]
[1753611489246,2.7571,3785.8,3785.7,29.69301]
[1753611489546,2.7571,3785.8,3785.7,29.1649]
[1753611490044,1.7064,3786.2,3786.1,0.6145]
[1753611490249,4.44695,3786.2,3786.1,24.8144]
[1753611490650,5.31415,3786.2,3786.1,24.8144]
[1753611491538,4.7861,3786.2,3786.1,24.8144]
[1753611492046,5.31414,3786.2,3786.1,24.8144]
[1753611492446,5.31414,3786.2,3786.1,25.0772]
[1753611492646,0.52803,3786.4,3786.1,26.47316]
[1753611492842,3.85653,3786.4,3786.3,1.6457]
[1753611493044,4.43423,3786.4,3786.3,25.0542]
[1753611493239,4.7861,3786.4,3786.3,28.262]
[1753611494050,5.31412,3786.4,3786.3,28.262]
[1753611497250,5.31412,3786.4,3786.3,26.6761]
[1753611497552,5.31412,3786.4,3786.3,22.8538]
[1753611497752,5.31412,3786.4,3786.3,26.0616]
[1753611500256,5.31412,3786.4,3786.3,26.9643]
[1753611500659,5.31412,3786.4,3786.3,27.5788]
[1753611501055,5.31412,3786.4,3786.3,26.0616]
[1753611501358,5.31412,3786.4,3786.3,27.5788]
[1753611501546,3.85652,3786.4,3786.3,29.1299]
[1753611502159,4.43422,3786.4,3786.3,29.1299]
[1753611503051,3.9062,3786.4,3786.3,29.65793]
[1753611503246,4.7861,3786.4,3785.9,3.2078]
[1753611503453,5.31417,3786.0,3785.9,2.5484]
[1753611503653,5.31417,3786.0,3785.9,2.8112]
[1753611504056,5.31417,3786.0,3785.9,2.5484]
[1753611505159,5.31417,3786.0,3785.9,2.128]
[1753611505556,5.31417,3786.0,3785.9,24.263]
[1753611507658,5.31417,3786.0,3785.9,23.3603]
[1753611507956,1.9917,3785.3,3785.2,0.8546]
[1753611508260,5.36507,3785.3,3785.2,26.7639]
[1753611508453,5.36507,3785.3,3785.2,27.784]
[1753611509054,5.36507,3785.3,3785.2,28.0448]
[1753611509662,5.36507,3785.3,3785.2,28.932]
[1753611509855,4.50537,3785.3,3785.2,28.932]
[1753611511554,5.36507,3785.3,3785.2,5.69]
[1753611511750,1.37104,3785.5,3785.4,1.6276]
[1753611511960,0.8429,3785.5,3785.4,25.7002]
[1753611512155,1.1426,3785.6,3785.4,25.7002]
[1753611512356,0.52812,3785.7,3785.6,1.6276]
[1753611512557,1.9855,3785.7,3785.6,29.43813]
[1753611512754,2.5962,3785.7,3785.6,29.43813]
[1753611512956,3.12431,3785.7,3785.6,29.43813]
[1753611513163,1.9855,3785.7,3785.6,29.43813]
[1753611513357,2.51361,3785.7,3785.6,29.43813]
[1753611513556,3.12431,3785.7,3785.6,29.43813]
[1753611513864,4.50531,3785.7,3785.6,28.91]
[1753611514164,5.36501,3785.7,3785.6,28.91]
[1753611514366,5.36501,3785.7,3785.6,28.0168]
[1753611515466,5.36501,3785.7,3785.6,27.755]
[1753611516762,5.36501,3785.7,3785.6,28.0168]
[1753611519264,4.8369,3785.7,3785.6,28.0168]
[1753611519464,5.36501,3785.7,3785.6,28.0168]
[1753611520264,5.36501,3785.7,3785.6,25.874]
[1753611520465,5.36501,3785.7,3785.6,22.065]
[1753611521365,2.51987,3785.3,3785.2,4.0624]
[1753611521566,5.36507,3785.3,3785.2,26.6629]
[1753611521767,5.36507,3785.3,3785.2,27.2641]
[1753611522472,5.36507,3785.3,3785.2,3.8153]
[1753611522666,5.36507,3785.3,3785.2,25.8003]
[1753611523870,5.36511,3785.0,3784.9,2.0633]
[1753611524168,5.36511,3785.0,3784.9,24.711]
[1753611524765,5.36511,3785.0,3784.9,24.716]
[1753611524970,5.36511,3785.0,3784.9,24.711]
[1753611526672,5.36511,3785.0,3784.9,24.4492]
[1753611527473,5.36511,3785.0,3784.9,24.4272]
[1753611527770,5.36511,3785.0,3784.8,3.2078]
[1753611527771,4.76573,3784.9,3784.8,5.69]
[1753611527974,5.36513,3784.9,3784.8,27.8938]
[1753611528466,4.50543,3784.9,3784.8,28.787]
[1753611528668,4.22239,3785.9,3785.8,2.744]
[1753611528869,3.3778,3785.9,3785.8,28.793]
[1753611529076,3.90589,3785.9,3785.8,28.793]
[1753611529371,3.3778,3785.9,3785.8,28.793]
[1753611529973,3.3778,3785.9,3785.8,29.3211]
[1753611530168,1.9855,3786.1,3786.0,0.6075]
[1753611530370,2.51356,3786.1,3786.0,25.6802]
[1753611531277,2.5962,3786.1,3786.0,26.20827]
[1753611531476,3.12426,3786.1,3786.0,26.20827]
[1753611531977,3.12426,3786.1,3786.0,25.6802]
[1753611532467,2.5962,3786.1,3786.0,26.20827]
[1753611532673,3.12426,3786.1,3786.0,26.20827]
[1753611534481,5.36499,3785.9,3785.8,5.3506]
[1753611534776,5.36499,3785.9,3785.8,28.84]
[1753611534976,2.51359,3785.9,3785.8,7.3731]
[1753611535175,3.994,3786.3,3786.2,2.744]
[1753611535478,5.36493,3786.3,3786.2,2.744]